Cogmind - Beta 14 @@@ ROGUE MODE // 2024.10.06 @ 20:55:41 Player: OctagonalPrism Result: Destroyed by S-10 Pest with Light Assault Rifle Performance ------------- Evolutions (0) 0 Regions Visited (1) 200 Robots Destroyed (26) 130 Value Destroyed (502) 502 Prototype IDs (0) 0 Alien Tech Used (0) 0 Bonus (0) 0 TOTAL SCORE: 832 Bonus ------- None Cogmind --------- Core Integrity 0/250 Matter 268/300 Energy 250/250 System Corruption 0% Temperature Cool (0) Movement Rolling (95) Ox1 Location -10/Materials Parts ------- > --- POWER (1) -------- Ion Engine > --- PROPULSION (2) --- Light Treads Wheel > --- UTILITY (2) ------ Small Storage Unit Weapon Shielding > --- WEAPON (2) ------- Light Assault Rifle Light Assault Rifle > --- INVENTORY (8) ---- Flight Unit Flight Unit Sensor Array Signal Interpreter Improved Terrain Scanner Peak State ------------ > --- POWER ------------ Ion Engine > --- PROPULSION ------- Light Treads Compact Wheel > --- UTILITY ---------- Small Storage Unit Improved Terrain Scanner > --- WEAPON ----------- Light Assault Rifle Light Assault Rifle > --- INVENTORY -------- Light Ion Engine Light Treads Wheel [Rating: 9] Favorites ----------- Power Ion Engine Engine Ion Engine Propulsion Light Treads Treads Light Treads Wheel Compact Wheel Utility Small Storage Unit Device Improved Terrain Scanner Storage Small Storage Unit Protection Weapon Shielding Weapon Light Assault Rifle Ballistic Gun Light Assault Rifle Build | -11 -10 ------- Run | Yrd Mat Slots Evolved . | . . Power . | . . Propulsion . | . . Utility . | . . Weapon . | . . Parts Attached 19 | 9 10 Power 4 | 1 3 Engine 4 | 1 3 Core . | . . Reactor . | . . Propulsion 7 | 4 3 Treads 4 | 2 2 Leg . | . . Wheel 3 | 2 1 Hover . | . . Flight . | . . Utility 3 | 2 1 Device 1 | 1 . Storage 1 | 1 . Processor . | . . Hackware . | . . Protection 1 | . 1 Artifact . | . . Weapon 5 | 2 3 Energy Gun . | . . Energy Cannon . | . . Ballistic Gun 5 | 2 3 Ballistic Cannon . | . . Launcher . | . . Special Weapon . | . . Impact Weapon . | . . Slashing Weapon . | . . Piercing Weapon . | . . Special Melee Weapon . | . . Unidentified Prototypes . | . . Parts Lost 3 | . 3 Power 1 | . 1 Propulsion 2 | . 2 Utility . | . . Weapon . | . . Highest Loss Streak 1 | . 1 To Critical Strikes . | . . Average Slot Usage (%) 98 | . 98 Engine 13 | . 13 Treads 13 | . 13 Wheel 13 | . 13 Device 10 | . 10 Storage 14 | . 14 Protection 3 | . 3 Ballistic Gun 28 | . 28 Peak Build Rating 9 | 9 9 Average Rating 8 | 5 8 On Entrance 4 | . 9 Naked Turns . | . . Heaviest Build 13 | 13 13 Greatest Support 40 | 40 20 Greatest Overweight (x) 3 | 3 1 Average Overweight (x) . | . . Largest Inventory Capacity 8 | 8 8 Average Capacity 7 | 7 8 Most Carried 6 | 3 6 Average Carried 3 | 2 4 Final Capacity 8 | 8 8 Final Carried 5 | 3 5 Class Distribution -------------------- 100% | Mutant Dominant Class ---------------- Mutant | -10/Materials Resources | -11 -10 ----------- Run | Yrd Mat Matter Collected 587 | 288 299 Remotely . | . . Salvage Created 749 | 38 711 Parts 53 | 5 48 Haulers Intercepted . | . . Recyclers Shooed 2 | . 2 Parts Field Recycled . | . . Retrieved Matter . | . . Parts Self-Destructed . | . . Prevented . | . . Kills | -11 -10 ------- Run | Yrd Mat Combat Hostiles Destroyed 15 | . 15 Guns 15 | . 15 Classes Destroyed 7 | 1 6 Worker 1 | . 1 Tunneler 2 | 2 . Recycler 2 | . 2 Operator 3 | . 3 Watcher 3 | . 3 Swarmer 6 | . 6 Grunt 9 | . 9 Best Kill Streak 4 | 1 4 Combat Bots Only 3 | . 3 Max Kills in Single Turn 1 | 1 1 Gunslinging . | . . Exploded . | . . Melee . | . . Uniques/NPCs Destroyed . | . . Combat | -11 -10 -------- Run | Yrd Mat Hostile Shots Fired 99 | . 99 Missed 23 | . 23 Damage Taken 956 | . 956 Core 256 | . 256 Absorbed by Shields . | . . Redirected to Shielding 19 | . 19 Regen/Repaired (Parts) 175 | . 175 Core Remaining (%) 100 | 100 . Volleys Fired 122 | 14 108 Largest 2 | 2 2 Hottest 40 | 40 40 Shots Fired 244 | 28 216 Gun 244 | 28 216 Cannon . | . . Launcher . | . . Special . | . . Kinetic 244 | 28 216 Thermal . | . . Explosive . | . . Electromagnetic . | . . Robot Hit Streak 15 | 3 15 Robot Miss Streak 5 | 5 4 Penetration Max . | . . Secondary Targets 1 | . 1 Max Gunslinging Chain 1 | . 1 Shots Hit Robots 149 | 14 135 Core Hits 56 | 4 52 Critical Kills . | . . Critical Parts Destroyed 2 | . 2 Critical Strikes 2 | . 2 Destroy 2 | . 2 Melee Attacks . | . . Impact . | . . Slashing . | . . Piercing . | . . Sneak Attacks . | . . Combat Hostiles . | . . Follow-up Attacks . | . . Damage Inflicted 1224 | 125 1099 Guns 1224 | 125 1099 Cannons . | . . Explosions . | . . Melee . | . . Ramming . | . . Kinetic 1224 | 125 1099 Thermal . | . . Explosive . | . . Electromagnetic . | . . Impact . | . . Slashing . | . . Piercing . | . . Highest Corruption . | . . Average Corruption . | . . Corruption Purged . | . . Corruption Blocked . | . . Overload Shots . | . . Overflow Damage . | . . Projectiles . | . . Explosions . | . . Melee . | . . Knockbacks . | . . Impact . | . . Kinetic . | . . Secondary . | . . Self-Inflicted Damage . | . . Shots . | . . Rammed . | . . Targets Rammed . | . . Kicked . | . . Crushed . | . . Highest Temperature 16 | . 16 Average Temperature 8 | . 8 Received Heat Transfer 306 | . 306 Siege Activations . | . . Robots Corrupted . | . . Combat Hostiles . | . . Parts Fried . | . . Impact Corruptions . | . . Robots Melted . | . . Combat Hostiles . | . . Parts Melted . | . . Heat Transferred . | . . Parts Sabotaged . | . . Parts Stolen . | . . Parts Stripped . | . . Power Chain Reactions . | . . Alert | -11 -10 ------- Run | Yrd Mat Peak Influence 246 | 10 246 Initial 6 | . 6 Average 100 | 2 114 Maximum Alert Level 1 | . 1 Low Security (%) 79 | 100 76 Level 1 20 | . 23 Level 2 . | . . Level 3 . | . . Level 4 . | . . Level 5 . | . . High Security . | . . Max Security . | . . Squads Dispatched 5 | . 5 Investigation 2 | . 2 Extermination . | . . Reinforcement 3 | . 3 Assault . | . . Garrison . | . . Intercept . | . . Searches Triggered . | . . Construction Impeded . | . . Haulers Reinforced . | . . Active Scanning Responses . | . . Cargo Convoy Interrupts . | . . Stealth | -11 -10 --------- Run | Yrd Mat Distress Signals 1 | . 1 Communications Jammed . | . . Distress Signals . | . . Times Spotted 36 | . 36 Peak Tracking Total 3 | . 3 Tactical Retreats 2 | . 2 Traps | -11 -10 ------- Run | Yrd Mat Traps Triggered 3 | . 3 Indirectly . | . . Trap Hack Attempts . | . . Triggered . | . . Disarmed . | . . Reprogrammed . | . . Reused . | . . Traps Extracted . | . . Installed . | . . Triggered . | . . Machines | -11 -10 ---------- Run | Yrd Mat Machines Disabled . | . . Max in Single Turn . | . . Machines Repaired . | . . Machines Dismantled . | . . Machines Sabotaged . | . . Overloaded Fab Kills . | . . Hacking | -11 -10 --------- Run | Yrd Mat Machines Accessed 5 | . 5 Terminals 4 | . 4 Fabricators . | . . Repair Stations 1 | . 1 Recycling Units . | . . Scanalyzers . | . . Garrison Access . | . . Total Hacks 18 | . 18 Successful 11 | . 11 Failed 7 | . 7 Catastrophic 1 | . 1 Database Lockouts . | . . Manual 12 | . 12 Terminals 14 | . 14 Fabricators . | . . Repair Stations 4 | . 4 Recycling Units . | . . Scanalyzers . | . . Garrison Access . | . . Terminal Hacks 3 | . 3 Alert Level 1 | . 1 Unreport Threat 1 | . 1 Zone Layout 1 | . 1 Fabricator Hacks . | . . Repair Station Hacks 4 | . 4 Scan Component 2 | . 2 Repair 2 | . 2 Recycling Unit Hacks . | . . Scanalyzer . | . . Garrison Access Hacks . | . . Unauthorized Hacks 4 | . 4 Terminals 4 | . 4 Botnet 3 | . 3 Operators 1 | . 1 Fabricators . | . . Repair Stations . | . . Recycling Units . | . . Scanalyzers . | . . Garrison Access . | . . Data Cores Recovered . | . . Used . | . . Hacking Detections 4 | . 4 Full Trace Events 2 | . 2 Feedback Events . | . . Feedback Blocked . | . . Robot Schematics Acquired . | . . Robots Built . | . . Authchips . | . . Time . | . . Total Robot Build Rating . | . . Part Schematics Acquired . | . . Parts Built . | . . Authchips . | . . Time . | . . Total Part Build Rating . | . . Parts Repaired 2 | . 2 Time 52 | . 52 Parts Recycled . | . . Recycled Matter . | . . Retrieved Matter . | . . Retrieved Components . | . . Parts Scanalyzed . | . . Part Schematics Acquired . | . . Parts Damaged . | . . Bothacking | -11 -10 ------------ Run | Yrd Mat Used RIF Installer . | . . Robots Hacked . | . . Non-combat . | . . Combat . | . . Robot Hacks Applied . | . . Relay Couplers Released . | . . Fabnet Peak Effective % . | . . Robots Rewired . | . . Allies Hacked . | . . Hacks Repelled . | . . Allies | -11 -10 -------- Run | Yrd Mat Total Allies . | . . Largest Group . | . . Highest-Rated Group . | . . Highest-Rated Ally . | . . Total Orders . | . . Ally Attacks . | . . Total Damage . | . . Kills . | . . Allies Corrupted . | . . Allies Melted . | . . Intel | -11 -10 ------- Run | Yrd Mat Robot Analysis Total . | . . Derelict Logs Recovered . | . . Drone Launches . | . . Drone Recoveries . | . . Exploration | -11 -10 ------------- Run | Yrd Mat Turns Passed 1224 | 152 1072 Spaces Moved 645 | 92 553 Core 14 | 14 . Treads 179 | 14 165 Legs . | . . Wheels 452 | 64 388 Hover . | . . Flight . | . . Fastest Speed 50 | 50 95 Average Speed 115 | 103 117 Slowest Speed 200 | 200 160 Overloaded Moves . | . . Propulsion Burnouts . | . . Robots Hopped . | . . Cave-ins Triggered . | . . Exploration Rate (%) 41 | 4 78 Regions Visited 1 Branch Regions . Pre-discovered Areas . | . . Known Exits Taken . | . . Unknown Exits Taken 1 | 1 . Scrap Searched . | . . Spaces Dug . | . . Terrain Destroyed . | . . Melee . | . . Projectile . | . . AOE . | . . Terrain Rammed . | . . Walls Destroyed . | . . Machines Disabled . | . . Actions | -11 -10 --------- Run | Yrd Mat Total 924 | 121 803 Wait 127 | 4 123 Move 644 | 91 553 Hop . | . . Pick Up 8 | 3 5 Fast Attach 9 | 7 2 Attach 3 | . 3 Detach . | . . Swap 7 | 2 5 Drop 4 | . 4 Fire 122 | 14 108 Melee . | . . Ram . | . . Kick . | . . Crush . | . . Escape Stasis . | . . Rewire . | . . Trap . | . . Miscellaneous . | . . Route ------- -11/Scrapyard -10/Materials (discovered 3 exits: [*Mat x2] / [*Min]) History --------- Turn | Location | Event 17 | -11/Scrapyard | Discovered new exit (range 16) 153 | -11/Scrapyard | Entered Materials 312 | -10/Materials | Build established: Mutant 459 | -10/Materials | Discovered new exit (range 6) 626 | -10/Materials | Discovered new exit (range 6) 740 | -10/Materials | Discovered new exit (range 13) 771 | -10/Materials | Core integrity fell below 50% 874 | -10/Materials | Core integrity fell below 20% 1024 | -10/Materials | Repaired Lgt. Treads 1051 | -10/Materials | Repaired Ion Engine 1225 | -10/Materials | Destroyed by S-10 Pest with Light Assault Rifle Last Messages --------------- >>Repair Repairing Ion Engine... ETC: 26 01027_ K-01 Serf cleans the Repair Station. 01051_ Repair station completes Ion Engine repairs. 01051_ Acquired Ion Engine. 01096_ Acquired 2 matter. 01115_ R-06 Scavenger collects Lgt. Assault Rifle. 01183_ S-10 Pest destroyed. 01187_ Acquired Flight Unit. 01189_ Acquired 13 matter. 01194_ A-02 Transporter sends out distress signal. 01199_ S-10 Pest destroyed. 01201_ K-01 Serf collects debris. 01202_ Acquired 15 matter. 01205_ K-01 Serf collects debris. 01210_ S-10 Pest destroyed. 01220_ S-10 Pest suffers critical hit (Destroy). 01220_ Destroyed Lgt. Ion Engine. 01221_ K-01 Serf collects debris. Map ----- +----------------------------------------------------+ | ?????????????????????????????????????????????????? | | ?????????????????????????????????????????????????? | | ?????????????????????????????????????????????????? | | ?????????????????????????????????????????????????? | | ?????????????????????????????????????????????????? | | ?????????????????????????????????????????????????? | | ?????????????????????????????????????????????????? | | ?????????????????????????????????????????????????? | | ?????????????????????????????????????????????????? | | ?????????????????????????????????????????????????? | | ???#?????????????????????????????????????????????? | | ?????????????????????????????????????????????????? | | ?????????????????????????????????????????????????? | | ?????????????????????????????????????????????????? | | ?????????????????????????????????????????????????? | | ???????????#?????????????????????????????????????? | | ?????????????????????????????????????????????????? | | ????????????????????##+####?#+##?????????????????? | | ##??????????????????# ## #?????????????????? | | #??????????????????# + #?????????????????? | | #??????????????????# ! ## #?????????????????? | | #??????????????????# ## #?????????????????? | | #??????????????????# kt ## ##????????????????? | | ##??????????????????# rss## #?????????????????? | | ????????????????????# ## #?????????????????? | | ?##??????? ???????# @## #?????????????????? | | ??#?#????? ???????# %s * +???"?"?? ????????? | | ?????????? #??????#^ ##[ #?????????????????? | | ?????????# #??????# ## #???"??"? ????????? | | ?????????# #??????# ## #? ?????????????? | | ???? ????# #?#######+##### #?????"???????????? | | ?????????+ #??# # ################### | | ???????? # #?## # #|]] """T""" #? | | ???????### #### """"""" + < #|]] #? | | ????????# """# """"""" # #|] ## | | ?????#?## "# """"""" # ##### #? | | ??????#?# !"# """"""" # %#??## [ ## | | #?#?????# < ""# """"""" # #??####+##########? | | ???#???## !"#+########## ###### ######?#??? | | ????#???# "# ########## % # ??#?? | | #?#?????# """# # # #???? | | ?######### #### #""" # """ # #????? | | ?# | # % #""" # """ #######???? | | ?# [[! + #""" # """ % #?#?#????? | | ?# [! ] # + # #?????#??? | | ## [! # #""" # #??#??#?#? | | ?# !##% #""" # """ ########## | | ?##########% #""" # """ # # | | ########### # # """ # """ # | | % ########## = # """ # | +----------------------------------------------------+ Best States ------------- Heat Dissipation 25 Energy Generation 10 Energy Capacity 250 Matter Stores 300 Matter Capacity 300 Sight Range 16 Terrain Scan Range 16 Terrain Scan Density 10 Weapon Shielding 33 Evasion (%) 41 Recoil Reduction 2 Item Schematics ----------------- None Robot Schematics ------------------ None Fabricated ------------ Nothing Alien Tech Used ----------------- None Achievements -------------- None Challenges ------------ None Game ------ Seed ShrapnelGrapheneStatue Manual? 0 Play Time 00:15:30 Cumulative 154.0 hours Start 2024.10.06 @ 20:43:21 End 2024.10.06 @ 20:55:41 Sessions 1 Manual Loads 0 Difficulty Rogue Special Mode None Game No. 129 Rogue 129 Adventurer 0 Explorer 0 Win Type - Total 2 Types 2/0/0/0/0/0/0/0/0 Lore% 59 Gallery% 63 Achievement% 49 Wizard Run 0 Options --------- Layout 2 ASCII 0 Keyboard 0 Movement Numpad Keybinds 0 Fullscreen 1 Font 16/Terminus Map View 55x47 Zoom Use 0% Tactical HUD 1 Map Filters NONE Filters NONE Steam 1 RUN: 4a33baca-b0f2-4c24-89bd-15939835eafd